bitfinex/quotes_BTCUSD_20250108
["timestamp","ask_amount","ask_price","bid_price","bid_amount"]
[1736377786618,0.74703337,95196.0,95195.0,5.01e-05]
[1736377789441,0.62183337,95196.0,95195.0,5.01e-05]
[1736377789798,0.26179434,95196.0,95195.0,5.01e-05]
[1736377790008,0.21492984,95196.0,95195.0,5.01e-05]
[1736377791054,0.12057085,95196.0,95195.0,5.01e-05]
[1736377791248,0.12169928,95196.0,95195.0,5.01e-05]
[1736377794588,0.27169928,95196.0,95195.0,5.01e-05]
[1736377794769,0.27057085,95196.0,95195.0,5.01e-05]
[1736377804143,0.29357085,95196.0,95195.0,5.01e-05]
[1736377804320,0.37237085,95196.0,95195.0,5.01e-05]
[1736377809916,0.46672984,95196.0,95195.0,5.01e-05]
[1736377811151,0.37237085,95196.0,95195.0,5.01e-05]
[1736377812225,0.56009434,95196.0,95195.0,5.01e-05]
[1736377813466,0.64373511,95196.0,95195.0,5.01e-05]
[1736377813696,0.51843511,95196.0,95195.0,5.01e-05]
[1736377814480,0.28306263,95196.0,95195.0,5.01e-05]
[1736377815462,0.47222391,95196.0,95195.0,5.01e-05]
[1736377816610,0.28306263,95196.0,95195.0,5.01e-05]
[1736377817640,0.47222391,95196.0,95195.0,5.01e-05]
[1736377818824,0.28306263,95196.0,95195.0,5.01e-05]
[1736377832245,0.28771934,95196.0,95195.0,5.01e-05]
[1736377832824,0.31616875,95196.0,95195.0,5.01e-05]
[1736377833726,0.28771934,95196.0,95195.0,5.01e-05]
[1736377840463,0.2839064,95196.0,95195.0,5.01e-05]
[1736377865757,0.00660664,95196.0,95195.0,0.0793501]
[1736377865970,0.00660664,95196.0,95195.0,0.1245501]
[1736377866141,0.28244698,95199.0,95195.0,0.1245501]
[1736377866364,0.00594394,95196.0,95195.0,0.1245501]
[1736377866588,0.14201505,95197.0,95195.0,0.0452501]
[1736377866785,0.14201505,95197.0,95196.0,0.1215]
[1736377867356,0.14201505,95197.0,95195.0,0.2101441]
[1736377867357,0.360092,95196.0,95195.0,5.01e-05]
[1736377867558,0.48739176,95196.0,95195.0,5.01e-05]
[1736377867738,0.48739176,95196.0,95195.0,0.0010501]
[1736377869089,0.48739176,95196.0,95195.0,5.01e-05]
[1736377873328,0.49731859,95196.0,95195.0,5.01e-05]
[1736377877335,0.49720913,95196.0,95195.0,5.01e-05]
[1736377880141,1.49860913,95196.0,95195.0,5.01e-05]
[1736377882140,1.60390889,95196.0,95195.0,5.01e-05]
[1736377882466,1.49960913,95196.0,95195.0,5.01e-05]
[1736377882754,1.55444913,95196.0,95195.0,5.01e-05]
[1736377882956,1.55544913,95196.0,95195.0,5.01e-05]
[1736377885495,5.88044913,95196.0,95195.0,5.01e-05]
[1736377885693,5.98474889,95196.0,95195.0,5.01e-05]
[1736377885920,6.02994889,95196.0,95195.0,5.01e-05]
[1736377888074,6.02994889,95196.0,95195.0,1e-07]
[1736377888311,6.02994889,95196.0,95146.0,0.210202]
[1736377888312,0.360183,95155.0,95154.0,0.0472]
[1736377888512,0.360183,95155.0,95137.0,0.09355308]
[1736377888513,0.023,95153.0,95149.0,7.369e-05]
[1736377888716,0.45429976,95150.0,95149.0,7.369e-05]
[1736377888893,5.57549976,95150.0,95149.0,7.369e-05]
[1736377889122,5.58770382,95150.0,95149.0,7.369e-05]
[1736377889326,5.69200358,95150.0,95149.0,6.9e-07]
[1736377889526,0.46022,95138.0,95137.0,0.09346096]
[1736377889654,5.63751976,95138.0,95137.0,0.09346096]
[1736377889854,5.6497033,95138.0,95137.0,0.0939604]
[1736377890084,5.6497033,95138.0,95137.0,0.00049944]
[1736377890266,5.75400306,95138.0,95137.0,0.00049944]
[1736377890912,5.85400306,95138.0,95137.0,0.00049944]
[1736377891123,5.92940306,95138.0,95137.0,0.00049944]
[1736377891324,6.78306256,95138.0,95137.0,0.00049944]
[1736377891530,0.1,95131.0,95113.0,0.0003396]
[1736377891685,0.383258,95121.0,95113.0,0.0003396]
[1736377891889,0.48755776,95121.0,95113.0,0.0003396]
[1736377892091,0.497202,95121.0,95113.0,0.0003396]
[1736377892298,0.474202,95121.0,95113.0,0.0003396]
[1736377892502,0.00964424,95121.0,95120.0,0.1765]
[1736377892696,0.00112843,95134.0,95120.0,0.1765]
[1736377892970,0.34933244,95138.0,95121.0,0.0474]
[1736377892971,0.003,95131.0,95121.0,0.0474]
[1736377893124,0.003,95131.0,95130.0,0.286738]
[1736377893327,0.34933244,95138.0,95136.0,0.210224]
[1736377893536,0.00050077,95138.0,95135.0,0.210225]
[1736377893733,0.00801708,95137.0,95135.0,0.210225]
[1736377894755,0.00801708,95137.0,95136.0,0.1258]
[1736377894953,0.00801708,95137.0,95136.0,0.12685102]
[1736377895162,0.15,95161.0,95144.0,0.0773]
[1736377895361,0.15,95161.0,95144.0,0.07745036]
[1736377895569,0.210158,95167.0,95152.0,0.0485]
[1736377895570,0.00807505,95160.0,95152.0,0.0485]
[1736377895739,0.00807505,95160.0,95153.0,0.210187]
[1736377895985,0.210156,95167.0,95153.0,0.210187]
[1736377896198,0.15808391,95166.0,95153.0,0.210187]
[1736377896435,0.15808391,95166.0,95152.0,0.0485]
[1736377897001,0.15808391,95166.0,95153.0,0.210187]
[1736377897564,0.15808391,95166.0,95152.0,0.0485]
[1736377898153,0.210161,95165.0,95152.0,0.0485]
[1736377898547,0.0080817,95164.0,95152.0,0.0485]
[1736377899929,0.210167,95162.0,95152.0,0.0485]
[1736377900266,0.00808615,95161.0,95152.0,0.0485]
[1736377901270,0.15,95160.0,95152.0,0.0485]
[1736377901487,0.15808393,95160.0,95152.0,0.0485]
[1736377902513,0.15808393,95160.0,95152.0,0.0505]
[1736377902719,0.15,95158.0,95152.0,0.0505]
[1736377902920,0.15,95158.0,95152.0,0.0485]
[1736377903121,0.00807728,95157.0,95152.0,0.0485]
[1736377909509,0.00712218,95157.0,95152.0,0.0485]
[1736377911501,0.210194,95150.0,95144.0,0.07745036]
[1736377911713,0.00794573,95156.0,95144.0,0.00015036]
[1736377911916,0.15,95146.0,95144.0,0.00015036]
[1736377912113,0.00112843,95145.0,95144.0,0.00015036]
[1736377912415,0.00905487,95145.0,95144.0,0.00015036]
[1736377912615,0.36925987,95145.0,95144.0,0.00015036]
[1736377912827,0.36813144,95145.0,95144.0,0.00015036]
[1736377913033,0.36813144,95145.0,95144.0,0.00115036]
[1736377913232,0.55326444,95145.0,95144.0,0.00115036]
[1736377914052,0.4954312,95145.0,95144.0,0.00115036]
[1736377914271,0.4954312,95145.0,95144.0,0.00015036]
[1736377914471,0.51189322,95145.0,95144.0,0.00015036]
[1736377915476,0.51889322,95145.0,95144.0,0.00115036]
[1736377916412,5.40489322,95145.0,95144.0,0.00115036]
[1736377916607,5.67319298,95145.0,95144.0,0.00115036]
[1736377917031,5.65673096,95145.0,95144.0,0.00115036]
[1736377917539,5.5524312,95145.0,95144.0,0.00115036]
[1736377918235,5.6089112,95145.0,95144.0,0.00115036]
[1736377919987,5.7089112,95145.0,95144.0,0.00115036]
[1736377920221,5.70989282,95145.0,95144.0,0.00115036]
[1736377920906,5.70997676,95145.0,95144.0,0.00115036]
[1736377921240,5.89237652,95145.0,95144.0,0.00115036]
[1736377921459,5.90891971,95145.0,95144.0,0.00115036]
[1736377921901,6.00301178,95145.0,95144.0,0.00115036]
[1736377922910,5.90891971,95145.0,95144.0,0.00115036]
[1736377923879,0.85891971,95145.0,95144.0,0.00115036]
[1736377924072,5.80461995,95145.0,95144.0,0.00115036]
[1736377925156,2.4468936,95145.0,95144.0,0.00115036]
[1736377925351,2.3133736,95145.0,95144.0,0.00115036]
[1736377925818,1.5473736,95145.0,95144.0,0.00115036]
[1736377926018,0.5589112,95145.0,95144.0,0.00115036]
[1736377926313,1.7089112,95145.0,95144.0,0.00115036]
[1736377927221,1.6949112,95145.0,95144.0,0.00115036]
[1736377931378,1.2552262,95145.0,95144.0,0.00115036]
[1736377931593,0.1192262,95145.0,95144.0,0.00115036]
[1736377931822,0.12035463,95145.0,95144.0,0.00115036]
[1736377932201,0.27035463,95145.0,95144.0,0.00115036]
[1736377932378,0.2652262,95145.0,95144.0,0.07635036]
[1736377932795,0.2692262,95145.0,95144.0,0.07635036]
[1736377933007,0.2652262,95145.0,95144.0,0.07635036]
[1736377933759,0.2662262,95145.0,95144.0,0.07635036]
[1736377934251,0.2652262,95145.0,95144.0,0.07635036]
[1736377934578,0.2662262,95145.0,95144.0,0.07635036]
[1736377934912,0.01192644,95145.0,95144.0,0.07635036]
[1736377935332,0.004,95145.0,95144.0,0.07635036]
[1736377935916,0.003,95145.0,95144.0,0.07635036]
[1736377936120,0.210181,95156.0,95144.0,0.07635036]
[1736377936338,0.15,95154.0,95144.0,0.07635036]
[1736377936515,0.00771423,95153.0,95144.0,0.07635036]
[1736377937974,0.004,95154.0,95144.0,0.07635036]
[1736377938179,0.00771856,95152.0,95144.0,0.07635036]
[1736377938507,0.01072078,95153.0,95144.0,0.28655636]
[1736377938708,0.00771412,95151.0,95144.0,0.28655636]
[1736377939055,0.002,95154.0,95144.0,0.28655636]
[1736377939457,0.210172,95160.0,95144.0,0.07635036]
[1736377939658,0.001,95153.0,95144.0,0.07735036]
[1736377939879,0.001,95153.0,95145.0,0.0481]
[1736377940066,0.15,95161.0,95145.0,0.0481]
[1736377940503,0.00773898,95160.0,95145.0,0.0481]
[1736377941771,0.00973898,95160.0,95145.0,0.0481]
[1736377942173,0.15,95157.0,95145.0,0.0481]
[1736377942382,0.15,95150.0,95145.0,0.0481]
[1736377942585,0.210196,95149.0,95145.0,0.0481]
[1736377942793,0.21792675,95149.0,95145.0,0.0481]
[1736377944256,0.21792675,95149.0,95145.0,0.0491]
[1736377945498,0.21792675,95149.0,95145.0,0.0511]
[1736377945701,0.21792675,95149.0,95145.0,0.0501]
[1736377945960,0.21792675,95149.0,95145.0,0.0511]
[1736377948479,0.00773075,95149.0,95145.0,0.0511]
[1736377953462,0.15,95147.0,95145.0,0.003]
[1736377953668,5.30542819,95146.0,95145.0,0.003]
[1736377953877,5.31088959,95146.0,95145.0,0.003]
[1736377954088,5.52207428,95146.0,95145.0,0.003]
[1736377954304,0.373,95145.0,95144.0,3.6e-07]
[1736377954481,0.360258,95121.0,95113.0,0.0003396]
[1736377954652,0.46455776,95121.0,95120.0,0.10050077]
[1736377954866,0.4707659,95121.0,95120.0,0.10050077]
[1736377956000,0.4737659,95121.0,95120.0,0.10050077]
[1736377956222,0.4707659,95121.0,95120.0,0.10050077]
[1736377956382,0.56614843,95121.0,95120.0,0.10050077]
[1736377956825,1.40714843,95121.0,95120.0,0.10050077]
[1736377956993,2.609592,95121.0,95120.0,0.10050077]
[1736377957196,3.017592,95121.0,95120.0,0.10050077]
[1736377957531,2.92720947,95121.0,95120.0,0.10050077]
[1736377957833,2.92620947,95121.0,95120.0,0.10050077]
[1736377958038,3.03050923,95121.0,95120.0,0.10050077]
[1736377958210,3.03150923,95121.0,95120.0,0.10050077]
[1736377958414,2.92320947,95121.0,95120.0,0.10050077]
[1736377958616,2.92220947,95121.0,95120.0,0.10050077]
[1736377958820,2.93020947,95121.0,95120.0,0.10150077]
[1736377959186,2.93420947,95121.0,95120.0,0.10150077]
[1736377959394,3.26167926,95121.0,95120.0,0.10150077]
[1736377959794,3.16167926,95121.0,95120.0,0.10150077]
[1736377960046,3.26167926,95121.0,95120.0,0.10150077]
[1736377960678,3.60992348,95121.0,95120.0,0.10150077]
[1736377962057,1.15892348,95121.0,95120.0,0.10150077]
[1736377962257,5.98192348,95121.0,95120.0,0.10150077]
[1736377962461,5.93092348,95121.0,95120.0,0.10150077]
[1736377963154,6.16649834,95121.0,95120.0,0.10150077]
[1736377963654,6.06219858,95121.0,95120.0,0.10150077]
[1736377963986,5.82719858,95121.0,95120.0,0.10150077]
[1736377964187,1.59646421,95121.0,95120.0,0.10150077]
[1736377964393,1.3059011,95121.0,95120.0,0.10150077]
[1736377964595,1.36334691,95121.0,95120.0,0.10150077]
[1736377964914,1.28138691,95121.0,95120.0,0.10150077]
[1736377965239,0.6829011,95121.0,95120.0,0.10150077]
[1736377965670,0.33473765,95121.0,95120.0,0.10150077]
[1736377965809,0.02017989,95121.0,95120.0,0.10150077]
[1736377966564,0.02017989,95121.0,95120.0,0.14780077]
[1736377967295,0.01617989,95121.0,95120.0,0.14780077]
[1736377967429,0.01117989,95121.0,95120.0,0.14680077]
[1736377967856,0.01603376,95121.0,95120.0,0.14780077]
[1736377968231,0.00903376,95121.0,95120.0,0.14680077]
[1736377969300,0.01103376,95121.0,95120.0,0.14680077]
[1736377970495,0.004,95121.0,95120.0,0.14680077]
[1736377970684,0.007,95121.0,95120.0,0.14680077]
[1736377970884,0.23557486,95152.0,95142.0,0.0754]
[1736377971245,0.09414824,95148.0,95143.0,0.0493]
[1736377972159,0.001,95144.0,95143.0,0.0493]
[1736377973775,0.005,95148.0,95143.0,0.0493]
[1736377973975,0.007,95148.0,95143.0,0.0493]
[1736377974148,0.002,95148.0,95143.0,0.0493]
[1736377974351,0.15,95151.0,95143.0,0.0493]
[1736377974945,0.15,95155.0,95143.0,0.0493]
[1736377975342,0.0082316,95154.0,95143.0,0.0493]
[1736377975625,0.001,95151.0,95143.0,0.0493]
[1736377975971,0.00822273,95150.0,95143.0,0.0493]
[1736377977057,0.151,95155.0,95143.0,0.0493]
[1736377977301,0.00822051,95149.0,95143.0,0.0493]
[1736377977501,0.15,95155.0,95143.0,0.0493]
[1736377977699,0.210175,95159.0,95143.0,0.0493]
[1736377977700,0.00821829,95148.0,95143.0,0.0493]
[1736377977881,0.15,95156.0,95143.0,0.0493]
[1736377978221,0.00823382,95155.0,95143.0,0.0493]
[1736377979138,0.00923382,95155.0,95143.0,0.0493]
[1736377980303,0.00823382,95155.0,95143.0,0.0493]
[1736377980705,0.15,95153.0,95143.0,0.0493]
[1736377980956,0.00823007,95152.0,95143.0,0.0493]
[1736377993274,0.15,95150.0,95143.0,0.0493]
[1736377993683,0.0082479,95149.0,95143.0,0.0493]
[1736377995377,0.0082479,95149.0,95143.0,0.0503]
[1736377995734,0.0082479,95149.0,95143.0,0.0493]
[1736377996720,0.15,95153.0,95143.0,0.0493]
[1736377996874,0.00824445,95148.0,95143.0,0.0493]
[1736377997044,0.15,95153.0,95143.0,0.0503]
[1736377997240,0.00824223,95147.0,95143.0,0.0503]
[1736377997626,0.210181,95156.0,95143.0,0.0503]
[1736377997757,0.00824001,95146.0,95143.0,0.0493]
[1736377997958,0.210181,95156.0,95143.0,0.0493]
[1736377998179,0.00825997,95155.0,95143.0,0.0503]
[1736377998382,0.15,95153.0,95143.0,0.0493]
[1736377998708,0.00825332,95152.0,95143.0,0.0493]
[1736378003428,0.15,95150.0,95129.0,0.0752]
[1736378003636,0.21024,95130.0,95122.0,0.0752]
[1736378004160,0.00826722,95129.0,95122.0,0.0752]
[1736378004365,0.15,95124.0,95120.0,0.00050077]
[1736378004766,0.360258,95121.0,95120.0,0.00050077]
[1736378005087,0.36847674,95121.0,95120.0,0.00050077]
[1736378005724,0.36847674,95121.0,95120.0,0.00350077]
[1736378006891,0.36847674,95121.0,95120.0,0.00050077]
[1736378007319,0.36847674,95121.0,95120.0,0.00650077]
[1736378007518,0.36847674,95121.0,95120.0,0.00250077]
[1736378007519,0.4727765,95121.0,95120.0,0.00250077]
[1736378007924,0.66237955,95121.0,95120.0,0.00450077]
[1736378008123,4.63294263,95121.0,95120.0,0.00150077]
[1736378008421,5.76894263,95121.0,95120.0,0.00550077]
[1736378008627,5.76894263,95121.0,95120.0,0.00450077]
[1736378008870,5.70164501,95121.0,95120.0,0.00050077]
[1736378009448,6.23781746,95121.0,95120.0,0.00050077]
[1736378009685,6.24181746,95121.0,95120.0,0.00050077]
[1736378010093,6.34181746,95121.0,95120.0,0.00050077]
[1736378010254,6.7931405,95121.0,95120.0,0.00150077]
[1736378010453,6.7911405,95121.0,95120.0,0.00050077]
[1736378010715,6.60278533,95121.0,95120.0,0.00050077]
[1736378010856,6.60478533,95121.0,95120.0,0.00150077]
[1736378011502,6.60078533,95121.0,95120.0,0.00150077]
[1736378011913,6.60478533,95121.0,95120.0,0.00150077]
[1736378012116,6.70908509,95121.0,95120.0,7.7e-07]
[1736378012335,0.460273,95114.0,95099.0,8.53e-05]
[1736378012488,0.56457276,95114.0,95113.0,0.00038966]
[1736378012689,0.47251442,95114.0,95113.0,0.00038966]
[1736378014066,0.47451442,95114.0,95113.0,0.00138966]
[1736378014450,0.47751442,95114.0,95113.0,0.00138966]
[1736378015116,0.80211303,95114.0,95113.0,0.00138966]
[1736378016737,0.8409039,95114.0,95113.0,0.00138966]
[1736378016946,0.80211303,95114.0,95113.0,0.00138966]
[1736378017769,0.43984003,95114.0,95113.0,0.00038966]
[1736378017972,0.33554027,95114.0,95113.0,0.00038966]
[1736378018165,0.33854027,95114.0,95113.0,0.00138966]
[1736378018386,0.33554027,95114.0,95113.0,0.00038966]
[1736378018604,0.48554027,95114.0,95113.0,0.00138966]
[1736378018801,0.48854027,95114.0,95113.0,0.00138966]
[1736378019202,0.01394166,95114.0,95113.0,0.00138966]
[1736378019404,0.003,95114.0,95113.0,0.00138966]
[1736378019715,0.005,95114.0,95113.0,0.00138966]
[1736378019920,0.002,95114.0,95113.0,0.00038966]
[1736378020075,0.005,95114.0,95113.0,0.00038966]
[1736378020658,0.005,95114.0,95113.0,0.00338966]
[1736378020882,0.15,95126.0,95113.0,0.00038966]
[1736378021156,0.001,95114.0,95113.0,0.00038966]
[1736378021292,0.001,95114.0,95113.0,0.00438966]
[1736378021752,0.15,95126.0,95113.0,0.00438966]
[1736378021921,0.15,95126.0,95113.0,0.00638966]
[1736378022134,0.15,95124.0,95113.0,0.00638966]
[1736378022564,0.00790525,95123.0,95113.0,0.00438966]
[1736378022778,0.00790525,95123.0,95113.0,0.00038966]
[1736378023445,0.15,95126.0,95114.0,0.33682426]
[1736378023720,0.00789081,95122.0,95114.0,0.335773]
[1736378023929,0.15,95126.0,95114.0,0.1255]
[1736378024102,0.00789304,95121.0,95115.0,0.210271]
[1736378024303,0.15,95126.0,95115.0,0.210271]
[1736378024520,0.00789082,95120.0,95115.0,0.210271]
[1736378024706,0.15,95126.0,95115.0,0.210271]
[1736378024960,0.0078886,95119.0,95115.0,0.210271]
[1736378025134,0.15,95126.0,95115.0,0.210271]
[1736378025460,0.00789422,95125.0,95115.0,0.210271]
[1736378025611,0.00789422,95125.0,95115.0,0.211271]
[1736378026017,0.210235,95132.0,95115.0,0.001]
[1736378026018,0.15,95129.0,95115.0,0.001]
[1736378026216,0.00790532,95128.0,95115.0,0.001]
[1736378027173,0.00790532,95128.0,95114.0,0.1255]
[1736378027679,0.00790532,95128.0,95115.0,0.001]
[1736378027853,0.00790532,95128.0,95115.0,0.00105124]
[1736378028147,0.15,95129.0,95115.0,0.00105124]
[1736378028289,0.00792175,95127.0,95114.0,0.1255]
[1736378028492,0.00792397,95128.0,95114.0,0.1255]
[1736378028693,0.00791953,95126.0,95114.0,0.1255]
[1736378028891,0.00792175,95127.0,95114.0,0.1255]
[1736378029091,0.00791731,95125.0,95114.0,0.1255]
[1736378029295,0.00791953,95126.0,95114.0,0.1255]
[1736378029498,0.00791509,95124.0,95114.0,0.1255]
[1736378029756,0.00791731,95125.0,95114.0,0.1255]
[1736378029973,0.00791287,95123.0,95114.0,0.1255]
[1736378030176,0.00791509,95124.0,95114.0,0.1255]
[1736378030320,0.00791066,95122.0,95114.0,0.1255]
[1736378030527,0.00791287,95123.0,95114.0,0.1255]
[1736378030781,0.15,95129.0,95114.0,0.1255]
[1736378030973,0.00791066,95122.0,95114.0,0.1255]
[1736378031197,0.15,95129.0,95114.0,0.1255]
[1736378031555,0.00792397,95128.0,95114.0,0.1255]
[1736378031759,0.00792397,95128.0,95114.0,0.1265]
[1736378032842,0.00792397,95128.0,95114.0,0.1285]
[1736378032997,0.00448,95119.0,95114.0,0.1285]
[1736378033162,0.00448,95119.0,95114.0,0.1255]
[1736378033361,0.00448,95119.0,95115.0,0.21132224]
[1736378033594,0.00448,95119.0,95115.0,0.210271]
[1736378035107,0.00448,95119.0,95115.0,0.211271]
[1736378035713,0.00448,95119.0,95115.0,0.214271]
[1736378036770,0.00448,95119.0,95115.0,0.004]
[1736378043498,0.00448,95119.0,95116.0,0.210269]
[1736378044797,0.00448,95119.0,95116.0,0.211269]
[1736378045800,0.00448,95119.0,95116.0,0.214269]
[1736378046671,0.00448,95119.0,95118.0,0.210265]
[1736378048950,0.00448,95119.0,95118.0,0.214265]
[1736378049750,0.00448,95119.0,95118.0,0.37432476]
[1736378049949,0.00448,95119.0,95118.0,0.50212476]
[1736378050331,0.00448,95119.0,95118.0,2.00212476]
[1736378051163,0.00448,95119.0,95118.0,2.00112476]
[1736378051339,0.00448,95119.0,95118.0,2.00612476]
[1736378051955,0.00448,95119.0,95118.0,2.55372476]
[1736378052167,0.00448,95119.0,95118.0,2.58637618]
[1736378052802,0.00448,95119.0,95118.0,2.58237618]
[1736378053211,0.00448,95119.0,95118.0,2.59137618]
[1736378053411,0.00448,95119.0,95118.0,1.09137618]
[1736378054030,0.00448,95119.0,95118.0,2.59137618]
[1736378056087,0.00448,95119.0,95118.0,0.014]
[1736378056865,0.00448,95119.0,95113.0,0.00038966]
[1736378057227,0.00448,95119.0,95118.0,0.013]
[1736378057425,0.00448,95119.0,95118.0,0.004]
[1736378057654,0.00448,95119.0,95113.0,0.00038966]
[1736378057979,0.00448,95119.0,95118.0,0.007]
[1736378058146,0.00344285,95119.0,95118.0,0.007]
[1736378058769,0.00956619,95119.0,95118.0,0.007]
[1736378058970,0.00344285,95119.0,95118.0,0.007]
[1736378059172,0.00344285,95119.0,95113.0,0.05914966]
[1736378059723,0.00344285,95119.0,95113.0,0.05614966]
[1736378059918,0.00344285,95119.0,95118.0,0.001]
[1736378060124,0.00344285,95119.0,95118.0,0.004]
[1736378060421,0.00344285,95119.0,95113.0,0.00038966]
[1736378060614,0.00951633,95119.0,95113.0,0.00338966]
[1736378060748,0.00951633,95119.0,95113.0,0.00438966]
[1736378060948,0.00344285,95119.0,95113.0,0.00138966]
[1736378061322,0.00344285,95119.0,95118.0,0.003]
[1736378061652,0.00952955,95119.0,95118.0,0.003]
[1736378061877,0.00344285,95119.0,95118.0,0.003]
[1736378062558,0.00344285,95119.0,95118.0,0.004]
[1736378062897,0.00344285,95119.0,95118.0,0.001]
[1736378063827,0.00344285,95119.0,95118.0,0.004]
[1736378070634,0.00344285,95119.0,95118.0,0.001]
[1736378070935,0.00344285,95119.0,95118.0,0.005]
[1736378071642,0.00344285,95119.0,95118.0,0.004]
[1736378072725,0.00344285,95119.0,95118.0,0.005]
[1736378081467,0.00344285,95119.0,95118.0,0.215265]
[1736378088404,0.00344285,95119.0,95118.0,0.31956476]
[1736378088728,0.00344285,95119.0,95118.0,0.31856476]
[1736378089261,0.00344285,95119.0,95118.0,0.31956476]
[1736378089687,0.00344285,95119.0,95118.0,0.31856476]
[1736378089887,8.5e-07,95119.0,95118.0,0.65324108]
[1736378090141,8.5e-07,95119.0,95118.0,0.66024108]
[1736378090311,8.5e-07,95119.0,95118.0,0.70954108]
[1736378090547,8.5e-07,95119.0,95118.0,0.70554108]
[1736378090877,8.5e-07,95119.0,95118.0,0.71454108]
[1736378091084,8.5e-07,95119.0,95118.0,0.70554108]
[1736378091321,8.5e-07,95119.0,95118.0,0.71454108]
[1736378091696,8.5e-07,95119.0,95118.0,0.70554108]
[1736378091916,8.5e-07,95119.0,95118.0,0.71154108]
[1736378092057,8.5e-07,95119.0,95118.0,2.21154108]
[1736378092254,8.5e-07,95119.0,95118.0,2.21454108]
[1736378092720,8.5e-07,95119.0,95118.0,2.21154108]
[1736378093219,8.5e-07,95119.0,95118.0,2.20954108]
[1736378093360,8.5e-07,95119.0,95118.0,0.70954108]
[1736378094550,8.5e-07,95119.0,95118.0,0.71854108]
[1736378095490,8.5e-07,95119.0,95118.0,0.68586476]
[1736378095699,8.5e-07,95119.0,95118.0,2.24162476]
[1736378095898,8.5e-07,95119.0,95118.0,2.56622476]
[1736378096840,8.5e-07,95119.0,95118.0,1.06622476]
[1736378097181,8.5e-07,95119.0,95118.0,1.17702476]
[1736378097381,8.5e-07,95119.0,95118.0,1.06622476]
[1736378099691,8.5e-07,95119.0,95118.0,1.06618476]
[1736378100054,8.5e-07,95119.0,95118.0,1.01046476]
[1736378100249,8.5e-07,95119.0,95118.0,1.06618476]
[1736378100905,8.5e-07,95119.0,95118.0,2.56618476]
[1736378101558,8.5e-07,95119.0,95118.0,1.06618476]
[1736378102846,8.5e-07,95119.0,95118.0,1.09877774]
[1736378103251,8.5e-07,95119.0,95118.0,1.06618476]
[1736378103651,8.5e-07,95119.0,95118.0,1.09877447]
[1736378104318,8.5e-07,95119.0,95118.0,1.06618476]
[1736378105943,8.5e-07,95119.0,95118.0,2.56618476]
[1736378107160,8.5e-07,95119.0,95118.0,2.71618476]
[1736378109123,8.5e-07,95119.0,95118.0,1.21618476]
[1736378109682,8.5e-07,95119.0,95118.0,2.71618476]
[1736378110445,8.5e-07,95119.0,95118.0,2.74877142]
[1736378111122,8.5e-07,95119.0,95118.0,2.71618476]
[1736378111320,8.5e-07,95119.0,95118.0,2.74877188]
[1736378118585,8.5e-07,95119.0,95118.0,1.24877188]
[1736378122679,8.5e-07,95119.0,95118.0,2.74877188]
[1736378125087,8.5e-07,95119.0,95118.0,1.24877188]
[1736378126048,8.5e-07,95119.0,95118.0,1.34227124]
[1736378127391,8.5e-07,95119.0,95118.0,1.24877188]
[1736378128170,0.0472,95145.0,95144.0,0.210207]
[1736378128369,0.0472,95145.0,95144.0,0.265927]
[1736378128791,0.05322614,95145.0,95144.0,0.265927]
[1736378129510,0.05322614,95145.0,95144.0,0.26597706]
[1736378129710,0.05322614,95145.0,95144.0,0.27197706]
[1736378129922,0.0472,95145.0,95144.0,0.27197706]
[1736378130304,0.0472,95145.0,95144.0,0.27397706]
[1736378134561,0.0472,95145.0,95144.0,0.06377006]
[1736378135906,0.0472,95145.0,95144.0,0.27397706]
[1736378140394,0.0813,95146.0,95144.0,0.27397706]
[1736378141014,0.0771,95153.0,95144.0,0.06377006]
[1736378141214,0.0001706,95158.0,95145.0,0.10535066]
[1736378141448,0.0001706,95158.0,95157.0,0.210178]
[1736378143296,0.0051415,95158.0,95157.0,0.210178]
[1736378143523,0.0001706,95158.0,95157.0,0.210178]
[1736378144107,0.0001706,95158.0,95157.0,0.31447776]
[1736378144391,0.0001706,95158.0,95157.0,0.41447776]
[1736378144770,0.0001706,95158.0,95157.0,0.44710104]
[1736378145176,0.0001706,95158.0,95157.0,0.45110104]
[1736378145619,0.0001706,95158.0,95157.0,0.45210104]
[1736378146031,0.0001706,95158.0,95157.0,0.49460104]
[1736378146413,0.0001706,95158.0,95157.0,0.50160104]
[1736378146767,0.0001706,95158.0,95157.0,0.52460104]
[1736378147199,0.0001706,95158.0,95157.0,0.49197776]
[1736378147494,0.0001706,95158.0,95157.0,0.48797776]
[1736378147905,0.0001706,95158.0,95157.0,0.49597776]
[1736378148859,7.935e-05,95158.0,95157.0,0.49597776]
[1736378149058,7.935e-05,95158.0,95157.0,0.52853114]
[1736378149435,7.935e-05,95158.0,95157.0,0.49597776]
[1736378149786,7.935e-05,95158.0,95157.0,0.59597776]
[1736378149985,7.935e-05,95158.0,95157.0,0.62851868]
[1736378151296,7.935e-05,95158.0,95157.0,0.92057776]
[1736378152192,7.935e-05,95158.0,95157.0,0.95309609]
[1736378152394,7.935e-05,95158.0,95157.0,2.42057776]
[1736378155789,9.5e-07,95159.0,95158.0,0.6286]
[1736378156023,9.5e-07,95159.0,95158.0,0.73289976]
[1736378156404,9.5e-07,95159.0,95158.0,0.76542719]
[1736378157007,9.5e-07,95159.0,95158.0,0.73289976]
[1736378157331,9.5e-07,95159.0,95158.0,2.24189976]
[1736378158773,9.5e-07,95159.0,95158.0,2.28042204]
[1736378158978,0.0001706,95184.0,95183.0,0.210121]
[1736378159305,0.0001706,95184.0,95183.0,0.37010076]
[1736378160160,0.00067177,95184.0,95183.0,0.37010076]
[1736378161502,0.00067177,95184.0,95183.0,0.37710076]
[1736378161703,0.00067177,95184.0,95183.0,0.37210076]
[1736378161855,0.00067177,95184.0,95183.0,0.37010076]
[1736378162379,0.00067177,95184.0,95183.0,0.37210076]
[1736378162579,0.00067177,95184.0,95183.0,1.87610076]
[1736378162986,0.00067177,95184.0,95183.0,1.87810076]
[1736378163189,0.00067177,95184.0,95183.0,1.87210076]
[1736378164156,0.00067177,95184.0,95183.0,1.87010076]
[1736378164379,0.00067177,95184.0,95183.0,1.87610076]
[1736378164586,0.00067177,95184.0,95183.0,1.87310076]
[1736378165003,0.00067177,95184.0,95183.0,1.88210076]
[1736378165601,0.00067177,95184.0,95183.0,0.32642076]
[1736378165809,0.00067177,95184.0,95183.0,0.38210076]
[1736378166007,0.00067177,95184.0,95183.0,1.90325317]
[1736378168985,0.00067177,95184.0,95183.0,0.40325317]
[1736378169214,0.00067177,95184.0,95183.0,0.012]
[1736378169371,0.13037177,95184.0,95183.0,0.012]
[1736378170434,0.13037177,95184.0,95183.0,0.009]
[1736378170649,0.15,95183.0,95164.0,0.05568]
[1736378170874,0.0763,95173.0,95164.0,0.05568]